bitfinex-derivatives/quotes_SOLF0:USTF0_20260304
["timestamp","ask_amount","ask_price","bid_price","bid_amount"]
[1772638867482,9.771,92.092,92.035,20.25940316]
[1772638867976,20.47062592,92.109,92.035,20.25940316]
[1772638868284,20.47062592,92.089,92.015,20.25940316]
[1772638869581,20.47062592,92.069,92.005,265.50596306]
[1772638869782,20.47062592,92.036,91.975,20.25940316]
[1772638870375,9.776,92.044,91.983,9.783]
[1772638870581,9.776,92.044,91.983,30.04240316]
[1772638870874,9.776,92.044,91.984,20.25940316]
[1772638871275,7.27596231,92.05,91.961,20.25940316]
[1772638871576,20.47062592,92.029,91.961,20.25940316]
[1772638871777,7.27596231,92.01,91.94,20.25940316]
[1772638871978,20.47062592,92.029,91.94,20.25940316]
[1772638872379,20.47062592,91.999,91.915,20.25940316]
[1772638872680,20.47062592,91.999,91.936,20.25940316]
[1772638872985,9.779,92.017,91.936,20.25940316]
[1772638873378,20.47062592,92.006,91.936,20.25940316]
[1772638873580,7.27596231,91.99,91.911,20.25940316]
[1772638873979,7.27596231,91.99,91.927,9.789]
[1772638874282,7.27596231,91.99,91.911,20.25940316]
[1772638874480,7.27596231,91.99,91.926,9.789]
[1772638874784,7.27596231,91.99,91.911,20.25940316]
[1772638875281,17.05796231,91.99,91.917,20.25940316]
[1772638875674,7.27596231,91.99,91.917,20.25940316]
[1772638875878,9.783,91.98,91.917,20.25940316]
[1772638876082,20.47062592,91.989,91.917,20.25940316]
[1772638876282,7.27596231,92.03,91.917,20.25940316]
[1772638876283,7.27596231,92.01,91.917,20.25940316]
[1772638876482,20.47062592,92.011,91.917,20.25940316]
[1772638876780,9.781,92.003,91.928,20.25940316]
[1772638877176,9.782,91.991,91.928,20.25940316]
[1772638877683,20.47062592,92.009,91.928,20.25940316]
[1772638877884,20.47062592,91.989,91.891,20.25940316]
[1772638878882,20.26184602,91.979,91.908,20.52824392]
[1772638879482,9.782,91.986,91.921,20.52824392]
[1772638879780,7.27596231,91.99,91.921,20.52824392]
[1772638879781,20.26184602,91.989,91.921,20.52824392]
[1772638880274,9.784,91.968,91.9,9.791]
[1772638880474,20.26184602,91.967,91.901,20.52824392]
[1772638880880,9.785,91.961,91.901,20.52824392]
[1772638881587,9.786,91.952,91.89,9.793]
[1772638881785,7.27596231,91.97,91.822,275.1510069]
[1772638881786,20.26184602,91.949,91.881,20.52824392]
[1772638882288,7.27596231,91.97,91.892,20.52824392]
[1772638882586,20.26184602,91.973,91.892,20.52824392]
[1772638882782,20.26184602,91.973,91.897,20.52824392]
[1772638883382,20.26184602,91.957,91.871,21.71109228]
[1772638883781,20.26184602,91.957,91.87,7.27596231]
[1772638883782,9.784,91.968,91.897,21.71109228]
[1772638884590,9.784,91.968,91.902,21.71109228]
[1772638884791,9.785,91.958,91.902,21.71109228]
[1772638885284,20.16997129,91.957,91.871,21.71109228]
[1772638885485,20.16997129,91.949,91.871,21.71109228]
[1772638886782,7.27596231,91.98,91.853,9.796]
[1772638886783,9.79,91.918,91.853,9.796]
[1772638887190,20.16997129,91.929,91.849,21.71109228]
[1772638887692,20.16997129,91.92,91.849,21.71109228]
[1772638888487,7.27596231,91.91,91.829,21.71109228]
[1772638888682,20.16997129,91.909,91.829,21.71109228]
[1772638888888,9.792,91.9,91.833,21.71109228]
[1772638889083,20.16997129,91.909,91.833,21.71109228]
[1772638890799,20.16997129,91.929,91.833,21.71109228]
[1772638891097,9.793,91.886,91.828,21.71109228]
[1772638891388,20.16997129,91.909,91.828,21.71109228]
[1772638891594,20.16997129,91.929,91.831,21.71109228]
[1772638891795,20.16997129,91.929,91.85,21.71109228]
[1772638892295,20.16997129,91.909,91.83,21.71109228]
[1772638892687,20.16997129,91.909,91.81,7.27596231]
[1772638892688,20.16997129,91.909,91.842,21.71109228]
[1772638892890,20.16997129,91.929,91.797,1.89478499]
[1772638893191,20.16997129,91.929,91.821,21.71109228]
[1772638893997,9.791,91.901,91.842,9.798]
[1772638894196,20.16997129,91.909,91.84,21.71109228]
[1772638894397,20.16997129,91.889,91.801,21.71109228]
[1772638894697,20.16997129,91.883,91.801,21.71109228]
[1772638895094,9.792,91.897,91.829,21.71109228]
[1772638895298,20.16997129,91.906,91.829,21.71109228]
[1772638895901,7.27596231,91.88,91.801,21.71109228]
[1772638896307,20.16997129,91.887,91.801,21.71109228]
[1772638896607,20.16997129,91.887,91.82,21.71109228]
[1772638897103,7.27596231,91.88,91.804,21.71109228]
[1772638897503,20.16997129,91.887,91.828,21.71109228]
[1772638897701,7.27596231,91.9,91.828,21.71109228]
[1772638897897,20.16997129,91.899,91.791,21.71109228]
[1772638898102,20.16997129,91.888,91.795,21.71109228]
[1772638898497,9.794,91.879,91.82,21.71109228]
[1772638899105,9.795,91.871,91.82,21.71109228]
[1772638899304,20.16997129,91.888,91.82,21.71109228]
[1772638899700,19.574,91.946,91.82,21.71109228]
[1772638899701,9.791,91.908,91.82,21.71109228]
[1772638900005,9.791,91.908,91.831,21.71109228]
[1772638900207,20.16997129,91.929,91.831,21.71109228]
[1772638900403,20.16997129,91.929,91.858,21.71109228]
[1772638900610,20.16997129,91.949,91.861,21.71109228]
[1772638901404,152.153,92.001,91.81,152.468]
[1772638901405,7.30489294,91.97,91.871,21.71109228]
[1772638901807,7.30489294,91.97,91.881,21.71109228]
[1772638902001,7.30489294,91.97,91.902,9.791]
[1772638902207,20.16997129,91.971,91.903,21.71109228]
[1772638903703,20.16997129,92.009,91.903,21.71109228]
[1772638903911,9.781,91.996,91.933,9.788]
[1772638904413,20.16997129,92.009,91.934,21.71109228]
[1772638904604,20.16997129,91.989,91.901,21.71109228]
[1772638905009,9.782,91.988,91.921,9.789]
[1772638905207,20.16997129,91.989,91.922,21.71109228]
[1772638905514,7.30489294,92.01,91.922,21.71109228]
[1772638905910,9.781,91.999,91.928,21.71109228]
[1772638906312,7.30489294,91.99,91.901,21.71109228]
[1772638906513,20.16997129,91.949,91.861,21.71109228]
[1772638907112,9.787,91.944,91.861,21.71109228]
[1772638907314,20.16997129,91.944,91.861,21.71109228]
[1772638907710,20.16997129,91.944,91.863,9.795]
[1772638907906,20.16997129,91.944,91.864,21.71109228]
[1772638908111,20.16997129,91.929,91.82,7.30489294]
[1772638908310,20.16997129,91.924,91.837,21.71109228]
[1772638908505,20.7656633,91.948,91.841,19.88109015]
[1772638908712,20.7656633,91.948,91.813,152.462]
[1772638908713,9.787,91.946,91.882,9.793]
[1772638909013,9.787,91.946,91.861,19.88109015]
[1772638909219,9.787,91.946,91.882,9.793]
[1772638909410,20.7656633,91.948,91.882,19.88109015]
[1772638909716,20.7656633,92.031,91.942,9.787]
[1772638909916,20.7656633,92.019,91.921,19.88109015]
[1772638910218,9.782,91.993,91.922,9.789]
[1772638910409,20.7656633,92.017,91.921,19.88109015]
[1772638910714,9.781,91.996,91.921,19.88109015]
[1772638911415,20.7656633,92.017,91.921,19.88109015]
[1772638911713,20.7656633,92.017,91.941,19.88109015]
[1772638911913,20.7656633,92.017,91.95,9.786]
[1772638912108,20.7656633,92.017,91.941,19.88109015]
[1772638912504,30.5446633,92.017,91.943,9.787]
[1772638912709,20.7656633,92.04,91.95,7.30489294]
[1772638912914,20.7656633,92.04,91.951,19.88109015]
[1772638913111,20.7656633,92.04,91.95,7.30489294]
[1772638913112,20.7656633,92.04,91.965,19.88109015]
[1772638913510,20.7656633,92.04,91.971,19.88109015]
[1772638914217,20.7656633,92.039,91.951,19.88109015]
[1772638914516,20.7656633,92.014,91.928,19.88109015]
[1772638914916,28.07055624,92.04,91.944,19.88109015]
[1772638915115,20.7656633,92.039,91.951,19.88109015]
[1772638916518,9.777,92.033,91.964,9.785]
[1772638916915,20.7656633,92.012,91.93,7.30489294]
[1772638917117,20.7656633,92.012,91.929,19.88109015]
[1772638917317,20.7656633,92.012,91.931,19.88109015]
[1772638917618,20.7656633,92.012,91.951,9.786]
[1772638918714,9.778,92.028,91.951,9.786]
[1772638918916,9.779,92.02,91.951,9.786]
[1772638919517,20.7656633,92.027,91.93,7.30489294]
[1772638919518,20.7656633,92.027,91.952,19.88109015]
[1772638920223,20.7656633,92.023,91.953,9.786]
[1772638920423,20.7656633,92.023,91.954,19.88109015]
[1772638920623,9.778,92.024,91.954,19.88109015]
[1772638920814,9.779,92.014,91.954,19.88109015]
[1772638921019,20.7656633,92.024,91.954,19.88109015]
[1772638921520,20.7656633,92.024,91.957,9.785]
[1772638921726,20.7656633,92.046,91.958,19.88109015]
[1772638922024,20.7656633,92.068,91.981,19.88109015]
[1772638922216,9.774,92.061,91.986,9.782]
[1772638922416,19.539,92.111,91.938,152.255]
[1772638922417,20.7656633,92.099,92.001,19.88109015]
[1772638922823,9.772,92.086,92.006,19.88109015]
[1772638923020,20.7656633,92.099,92.021,19.88109015]
[1772638923228,20.7656633,92.12,92.021,19.88109015]
[1772638923525,20.7656633,92.12,92.044,19.88109015]
[1772638924125,20.7656633,92.12,92.05,9.776]
[1772638924728,20.7656633,92.12,92.044,19.88109015]
[1772638924927,9.767,92.13,92.044,19.88109015]
[1772638925427,9.766,92.142,92.044,19.88109015]
[1772638925730,9.766,92.142,92.061,19.88109015]
[1772638926027,20.7656633,92.144,92.061,19.88109015]
[1772638926624,9.768,92.122,92.061,19.88109015]
[1772638926922,20.7656633,92.139,92.061,19.88109015]
[1772638927624,9.767,92.133,92.072,9.773]
[1772638927825,20.7656633,92.139,92.072,9.773]
[1772638928127,9.764,92.159,92.091,9.771]
[1772638928331,20.7656633,92.161,92.091,19.88109015]
[1772638928629,151.725,92.26,92.101,19.88109015]
[1772638928630,20.7656633,92.189,92.101,19.88109015]
[1772638928828,20.7656633,92.187,92.101,19.88109015]
[1772638929029,20.7656633,92.187,92.019,152.122]
[1772638929030,20.7656633,92.169,92.075,19.88109015]
[1772638929630,20.7656633,92.156,92.075,19.88109015]
[1772638930028,28.07055624,92.18,92.104,9.77]
[1772638930326,20.7656633,92.18,92.104,29.65109015]
[1772638930527,9.762,92.178,92.105,19.88109015]
[1772638930928,124.0,92.21,92.081,19.88109015]
[1772638930929,20.7656633,92.169,92.081,19.88109015]
[1772638931133,9.765,92.147,92.081,19.88109015]
[1772638931334,30.5306633,92.147,92.081,19.88109015]
[1772638931633,20.7656633,92.146,92.081,19.88109015]
[1772638931833,20.7656633,92.144,92.058,19.88109015]
[1772638932435,20.7656633,92.123,92.048,9.776]
[1772638932631,20.7656633,92.123,92.036,19.88109015]
[1772638932632,20.7656633,92.109,92.036,19.88109015]
[1772638932833,20.7656633,92.109,92.013,19.88109015]
[1772638933032,20.7656633,92.109,92.018,19.88109015]
[1772638933431,20.7656633,92.089,92.018,19.88109015]
[1772638933829,9.774,92.066,91.994,19.88109015]
[1772638934032,20.7656633,92.065,91.994,19.88109015]
[1772638934537,20.7656633,92.065,92.005,9.78]
[1772638934732,20.7656633,92.065,91.994,19.88109015]
[1772638934932,20.7656633,92.065,91.912,152.299]
[1772638934933,20.7656633,92.065,91.967,19.88109015]
[1772638935133,20.7656633,92.059,91.967,19.88109015]
[1772638935534,7.30489294,92.06,91.967,19.88109015]
[1772638935744,20.7656633,92.059,91.967,19.88109015]
[1772638935929,9.776,92.044,91.967,29.66509015]
[1772638936239,20.7656633,92.059,91.968,19.88109015]
[1772638936736,7.30489294,92.09,91.968,19.88109015]
[1772638936737,30.5416633,92.046,91.969,9.784]
[1772638936938,20.7656633,92.045,91.968,19.88109015]
[1772638937532,20.7656633,92.071,91.981,19.88109015]
[1772638938331,21.59301499,92.069,91.981,19.88109015]
[1772638939640,21.59301499,92.069,91.993,21.12277766]
[1772638939942,21.59301499,92.069,91.928,19.577]
[1772638939943,21.59301499,92.049,91.963,21.12277766]
[1772638940240,7.30489294,92.07,91.981,21.12277766]
[1772638940543,21.59301499,92.073,91.981,21.12277766]
[1772638940932,21.59301499,92.069,91.993,9.782]
[1772638941139,21.59301499,92.069,91.993,30.90477766]
[1772638941341,21.59301499,92.069,91.994,21.12277766]
[1772638941838,21.59301499,92.089,92.001,21.12277766]
[1772638942241,9.772,92.087,92.001,21.12277766]
[1772638942642,31.36501499,92.087,92.001,21.12277766]
[1772638943044,31.36501499,92.087,92.018,9.779]
[1772638943242,9.771,92.098,92.021,21.12277766]
[1772638943739,9.771,92.089,92.021,21.12277766]
[1772638943940,21.59301499,92.088,92.021,21.12277766]
[1772638944243,21.59301499,92.088,92.021,30.90177766]
[1772638944446,9.77,92.099,92.022,18.75546609]
[1772638944644,26.73926463,92.11,92.022,18.75546609]
[1772638944944,19.43437169,92.11,92.043,18.75546609]
[1772638945745,19.43437169,92.109,92.011,18.75546609]
[1772638946243,19.43437169,92.089,92.011,18.75546609]
[1772638946736,9.772,92.083,92.012,9.78]
[1772638946936,9.772,92.083,92.012,28.53546609]
[1772638947945,9.774,92.061,92.012,18.75546609]
[1772638948141,9.774,92.061,91.934,9.52229534]
[1772638948142,19.43437169,92.079,91.989,18.75546609]
[1772638948343,19.43437169,92.059,91.965,18.75546609]
[1772638948542,9.776,92.046,91.978,9.783]
[1772638948739,19.43437169,92.045,91.978,9.783]
[1772638948937,19.43437169,92.045,91.965,18.75546609]
[1772638949145,19.43437169,92.045,91.967,9.784]
[1772638949146,9.777,92.04,91.967,9.784]
[1772638949346,19.43437169,92.068,91.971,18.75546609]
[1772638949738,9.775,92.058,91.99,9.782]
[1772638949941,7.30489294,92.09,91.99,9.782]
[1772638949942,19.43437169,92.057,91.99,9.782]
[1772638950143,19.43437169,92.049,91.971,18.75546609]
[1772638951047,9.776,92.047,91.989,9.782]
[1772638951247,19.43437169,92.049,91.971,18.75546609]
[1772638951547,19.43437169,92.049,91.989,9.782]
[1772638951844,19.43437169,92.049,91.971,18.75546609]
[1772638952048,7.30489294,92.05,91.971,28.53946609]
[1772638952049,19.43437169,92.04,91.971,28.53946609]
[1772638952547,7.30489294,92.05,91.971,18.75546609]
[1772638952740,19.43437169,92.064,91.991,18.75546609]
[1772638952941,19.43437169,92.089,92.011,18.75546609]
[1772638953145,188.21437192,92.12,92.011,18.75546609]
[1772638953146,9.771,92.097,92.039,9.777]
[1772638953444,19.43437169,92.119,92.011,18.75546609]
[1772638953646,9.773,92.075,92.014,9.779]
[1772638953848,19.43437169,92.079,91.99,26.06035903]
[1772638954045,19.43437169,92.079,91.99,18.75546609]
[1772638954346,9.776,92.047,91.99,18.75546609]
[1772638954644,19.43437169,92.057,91.968,18.75546609]
[1772638954947,9.777,92.038,91.968,18.75546609]
[1772638955244,19.43437169,92.037,91.968,18.75546609]
[1772638955443,19.43437169,92.037,91.92,19.579]
[1772638955444,19.43437169,92.037,91.97,28.53946609]
[1772638956050,9.777,92.035,91.979,9.783]
[1772638956349,19.43437169,92.037,91.97,18.75546609]
[1772638956549,19.43437169,92.027,91.953,9.786]
[1772638956742,26.73926463,92.02,91.919,18.75546609]
[1772638956947,26.73926463,92.02,91.931,18.75546609]
[1772638957148,19.43437169,92.02,91.931,18.75546609]
[1772638957652,19.43437169,92.018,91.931,18.75546609]
[1772638958743,9.78,92.005,91.931,18.75546609]
[1772638958944,19.43437169,92.004,91.931,18.75546609]
[1772638959549,19.43437169,92.001,91.917,9.79]
[1772638959754,19.43437169,92.001,91.918,18.75546609]
[1772638960252,19.43437169,92.001,91.933,28.54346609]
[1772638960449,19.43437169,92.027,91.933,18.75546609]
[1772638960854,19.43437169,92.027,91.942,18.75546609]
[1772638961255,19.43437169,92.021,91.942,28.54246609]
[1772638961952,9.779,92.016,91.952,9.786]
[1772638962354,19.43437169,92.015,91.942,18.75546609]
[1772638962553,9.78,92.008,91.944,9.787]
[1772638962750,9.78,92.008,91.942,18.75546609]
[1772638963156,9.781,91.997,91.942,18.75546609]
[1772638963353,9.781,91.997,91.866,12.69422476]
[1772638963354,19.43437169,91.989,91.911,18.75546609]
[1772638963553,19.43437169,91.989,91.901,9.791]
[1772638963753,19.43437169,91.969,91.89,18.75546609]
[1772638964654,19.43437169,91.969,91.901,18.75546609]
[1772638965056,19.43437169,91.969,91.879,18.75546609]
[1772638965556,19.43437169,92.021,91.898,18.75546609]
[1772638965753,19.558,92.022,91.898,18.75546609]
[1772638965754,19.43437169,91.979,91.898,18.75546609]
[1772638965958,19.43437169,91.979,91.871,18.75546609]
[1772638966158,19.43437169,91.958,91.871,18.75546609]
[1772638966460,19.43437169,91.979,91.871,18.75546609]
[1772638966655,19.43437169,91.979,91.895,18.75546609]
[1772638967159,9.786,91.952,91.895,18.75546609]
[1772638967357,19.43437169,91.957,91.895,18.75546609]
[1772638967859,19.43437169,91.955,91.874,18.75546609]
[1772638968460,20.56918879,91.976,91.884,21.65684174]
[1772638969058,9.785,91.965,91.904,9.791]
[1772638969261,20.56918879,91.976,91.904,9.791]
[1772638969955,20.56918879,91.999,91.901,21.65684174]
[1772638970160,20.56918879,91.999,91.921,21.65684174]
[1772638970453,20.56918879,91.999,91.945,9.787]
[1772638970655,20.56918879,91.999,91.921,21.65684174]
[1772638970856,30.35018879,91.999,91.936,9.788]
[1772638971053,20.56918879,91.998,91.921,21.65684174]
[1772638971959,7.29382825,92.02,91.941,21.65684174]
[1772638971960,20.56918879,92.02,91.941,21.65684174]
[1772638972157,9.779,92.018,91.941,21.65684174]
[1772638972758,20.56918879,92.042,91.967,21.65684174]
[1772638973264,9.778,92.03,91.97,9.784]
[1772638973464,20.56918879,92.042,91.967,21.65684174]
[1772638973957,20.56918879,92.096,91.967,21.65684174]
[1772638974262,20.56918879,92.096,91.991,21.65684174]
[1772638974463,20.56918879,92.079,91.991,21.65684174]
[1772638975468,20.56918879,92.073,91.991,21.65684174]
[1772638976360,20.56918879,92.073,92.013,9.779]
[1772638977661,20.56918879,92.073,92.003,21.65684174]
[1772638978765,20.56918879,92.073,91.938,152.255]
[1772638978766,20.56918879,92.071,91.981,21.65684174]
[1772638979270,20.56918879,92.068,92.0,7.29382825]
[1772638979468,180.90947898,92.12,92.0,7.29382825]
[1772638979469,20.56918879,92.089,92.001,21.65684174]
[1772638979770,20.56918879,92.089,92.021,21.65684174]
[1772638979962,20.56918879,92.097,92.021,21.65684174]
[1772638981368,9.771,92.096,92.023,9.778]
[1772638981875,9.771,92.096,92.021,21.65684174]
[1772638981876,20.56918879,92.095,92.024,21.65684174]
[1772638982073,20.56918879,92.095,91.991,21.65684174]
[1772638982275,20.56918879,92.089,91.991,21.65684174]
[1772638982569,20.56918879,92.089,92.011,21.65684174]
[1772638982870,30.34118879,92.088,92.015,31.43584174]
[1772638983167,7.29382825,92.11,92.015,31.43584174]
[1772638983168,20.56918879,92.087,92.015,21.65684174]
[1772638983374,20.56918879,92.082,91.994,21.65684174]
[1772638984176,20.56918879,92.07,91.994,21.65684174]
[1772638984780,9.772,92.08,92.007,21.65684174]
[1772638985373,20.56918879,92.079,91.99,7.29382825]
[1772638985877,20.56918879,92.079,91.99,28.95066999]
[1772638986075,20.56918879,92.079,92.0,21.65684174]
[1772638986477,20.56918879,92.079,91.99,7.29382825]
[1772638986478,20.56918879,92.101,92.021,21.65684174]
[1772638986884,20.56918879,92.099,92.021,21.65684174]
[1772638987082,20.56918879,92.099,91.991,21.65684174]
[1772638987284,20.56918879,92.099,91.99,7.29382825]
[1772638987285,20.56918879,92.143,92.071,9.773]
[1772638987481,20.56918879,92.143,92.041,21.65684174]
[1772638987673,20.56918879,92.143,92.051,21.65684174]
[1772638988283,20.56918879,92.139,92.051,21.65684174]
[1772638988684,30.33818879,92.108,92.045,9.776]
[1772638988881,20.56918879,92.108,92.03,21.65684174]
[1772638989381,7.29382825,92.14,92.031,21.65684174]
[1772638989689,20.56918879,92.139,92.031,21.65684174]
[1772638989981,20.56918879,92.123,92.059,9.775]
[1772638991382,20.56918879,92.123,92.059,31.43184174]
[1772638991880,20.56918879,92.121,92.059,31.43184174]
[1772638992378,20.56918879,92.121,92.068,9.774]
[1772638992574,9.767,92.131,92.068,31.43084174]
[1772638992778,20.56918879,92.142,92.071,21.65684174]
[1772638993686,20.56918879,92.163,92.071,21.65684174]
[1772638995385,20.56918879,92.163,92.105,9.77]
[1772638995585,9.763,92.171,92.106,21.65684174]
[1772638996079,20.56918879,92.184,92.091,21.65684174]
[1772638996681,20.56918879,92.174,92.091,21.65684174]
[1772638997081,20.56918879,92.196,92.091,21.65684174]
[1772638997284,20.56918879,92.196,92.126,9.767]
[1772638997583,20.56918879,92.189,92.112,21.65684174]
[1772638997885,20.56918879,92.189,92.129,9.767]
[1772638998084,20.56918879,92.189,92.112,21.65684174]
[1772638998482,20.56918879,92.189,92.117,9.768]
[1772638999486,21.63038282,92.186,92.117,9.768]
[1772638999887,21.63038282,92.186,92.127,9.767]
[1772639000686,17.34110199,92.28,92.1,7.29382825]
[1772639000687,21.63038282,92.21,92.132,21.62865983]
[1772639000885,21.63038282,92.239,92.141,21.62865983]
[1772639001388,21.63038282,92.231,92.141,21.62865983]
[1772639001681,21.63038282,92.219,92.12,7.29382825]
[1772639001887,21.63038282,92.186,92.121,21.62865983]
[1772639002089,21.63038282,92.179,92.081,21.62865983]
[1772639002486,21.63038282,92.168,92.081,21.62865983]
[1772639002686,21.63038282,92.159,92.081,21.62865983]
[1772639003077,9.764,92.158,92.081,21.62865983]
[1772639003282,21.63038282,92.159,92.081,21.62865983]
[1772639003882,21.63038282,92.159,92.058,21.36797001]
[1772639004382,19.74996607,92.139,92.058,21.36797001]
[1772639004782,7.29382825,92.16,92.058,21.36797001]
[1772639004984,7.29382825,92.16,92.071,21.36797001]
[1772639005383,9.764,92.159,92.071,21.36797001]
[1772639005685,7.29382825,92.18,92.08,7.29382825]
[1772639005992,7.29382825,92.2,92.101,21.36797001]
[1772639006188,9.761,92.19,92.127,9.767]
[1772639007185,19.74996607,92.179,92.101,21.36797001]
[1772639007688,9.762,92.177,92.115,9.769]
[1772639007983,19.74996607,92.177,92.101,21.36797001]
[1772639008188,19.74996607,92.159,92.078,21.36797001]
[1772639008883,19.74996607,92.156,92.078,21.36797001]
[1772639009884,7.29382825,92.14,92.051,21.36797001]
[1772639010187,19.74996607,92.159,92.051,21.36797001]
[1772639010385,7.29382825,92.14,92.073,21.36797001]
[1772639010590,19.74996607,92.139,92.073,21.36797001]
[1772639011785,19.74996607,92.139,92.051,21.36797001]
[1772639012790,19.74996607,92.129,92.051,21.36797001]
[1772639013686,19.74996607,92.118,92.051,21.36797001]
[1772639014289,9.769,92.108,92.051,21.36797001]
[1772639014792,19.74996607,92.109,92.02,21.36797001]
[1772639015086,9.77,92.1,92.043,9.776]
[1772639015286,19.74996607,92.109,92.02,21.36797001]
[1772639015688,19.74996607,92.089,92.02,21.36797001]
[1772639015992,27.04379432,92.11,92.012,21.36797001]
[1772639016287,151.845,92.187,92.011,268.70701351]
[1772639016288,19.74996607,92.133,92.059,21.36797001]
[1772639016786,19.74996607,92.129,92.063,9.774]
[1772639017291,7.29382825,92.15,92.069,9.774]
[1772639017491,19.74996607,92.149,92.069,9.774]
[1772639018194,9.767,92.128,92.069,9.774]
[1772639018393,19.74996607,92.149,92.069,9.774]
[1772639018590,19.74996607,92.119,92.03,21.36797001]
[1772639018795,9.772,92.085,92.011,268.70701351]
[1772639018994,19.74996607,92.099,92.012,21.36797001]
[1772639019189,19.74996607,92.099,92.032,9.777]
[1772639019495,9.771,92.095,92.012,21.36797001]
[1772639019686,19.74996607,92.099,92.012,21.36797001]
[1772639019890,7.29382825,92.08,92.012,21.36797001]
[1772639020300,19.74996607,92.099,92.012,21.36797001]
[1772639020598,19.74996607,92.148,92.037,21.36797001]
[1772639020789,7.29382825,92.12,92.037,21.36797001]
[1772639020988,19.74996607,92.119,92.037,21.36797001]
[1772639021398,29.51896607,92.109,92.042,9.776]
[1772639021599,19.74996607,92.129,92.043,21.36797001]
[1772639022499,19.74996607,92.109,92.011,21.36797001]
[1772639023001,19.74996607,92.109,92.032,9.777]
[1772639023002,9.771,92.095,92.032,9.777]
[1772639023390,19.74996607,92.109,92.032,9.777]
[1772639023594,19.74996607,92.089,92.011,21.36797001]
[1772639024303,19.74996607,92.085,92.011,21.36797001]
[1772639024896,9.773,92.076,92.021,9.779]
[1772639025195,19.74996607,92.069,91.992,21.36797001]
[1772639025392,9.775,92.06,92.001,9.781]
[1772639025590,19.74996607,92.069,92.001,21.36797001]
[1772639025794,19.74996607,92.049,91.98,21.36797001]
[1772639026195,19.74996607,92.043,91.961,21.36797001]
[1772639026802,7.28024103,92.03,91.97,9.784]
[1772639026991,19.74996607,92.029,91.961,21.36797001]
[1772639027392,19.74996607,92.047,91.961,21.36797001]
[1772639027598,19.74996607,92.069,91.981,21.36797001]
[1772639028192,9.772,92.081,91.981,21.36797001]
[1772639028403,20.9492726,92.08,91.981,21.36797001]
[1772639029096,20.9492726,92.08,92.001,20.56967506]
[1772639029301,7.28024103,92.09,92.001,20.56967506]
[1772639029700,20.9492726,92.089,92.001,20.56967506]
[1772639030604,20.9492726,92.089,92.035,9.777]
[1772639030803,20.9492726,92.089,92.001,20.56967506]
[1772639031296,20.9492726,92.087,92.001,20.56967506]
[1772639032503,20.9492726,92.082,92.001,20.56967506]
[1772639034401,20.9492726,92.082,92.033,9.777]
[1772639034798,20.9492726,92.082,92.001,20.56967506]
[1772639035207,20.9492726,92.07,92.016,9.779]
[1772639035409,20.9492726,92.069,92.016,9.779]
[1772639036007,9.772,92.086,92.001,20.56967506]
[1772639036205,20.9492726,92.085,92.001,20.56967506]
[1772639036602,20.9492726,92.08,92.025,9.778]
[1772639037013,20.9492726,92.08,92.033,9.777]
[1772639037909,20.9492726,92.08,92.001,20.56967506]
[1772639038712,20.9492726,92.077,92.016,9.779]
[1772639039608,9.774,92.067,92.008,9.78]
[1772639040010,9.774,92.067,92.001,20.56967506]
[1772639040309,20.9492726,92.077,92.034,9.777]
[1772639040807,9.772,92.087,92.001,20.56967506]
[1772639041013,9.772,92.087,92.034,9.777]
[1772639041216,20.9492726,92.097,92.034,9.777]
[1772639041408,9.772,92.088,92.034,9.777]
[1772639041608,20.9492726,92.087,92.026,9.778]
[1772639042008,20.9492726,92.087,92.034,9.777]
[1772639042510,20.9492726,92.107,92.023,20.56967506]
[1772639042714,9.77,92.104,92.052,9.775]
[1772639043913,20.9492726,92.086,92.036,9.777]
[1772639044311,20.9492726,92.086,91.964,161.81456381]
[1772639044312,20.9492726,92.086,91.985,20.56967506]
[1772639044607,20.9492726,92.086,91.925,152.276]
[1772639044608,20.9492726,92.049,91.94,7.28024103]
[1772639044813,20.9492726,92.049,91.941,20.56967506]
[1772639045015,7.28024103,92.09,91.941,20.56967506]
[1772639045016,28.22951363,92.03,91.971,9.784]
[1772639045312,20.9492726,92.029,91.941,20.56967506]
[1772639045516,20.9492726,92.003,91.918,20.56967506]
[1772639045721,20.9492726,91.989,91.918,20.56967506]
[1772639046219,20.9492726,92.009,91.918,20.56967506]
[1772639046920,20.9492726,91.999,91.918,20.56967506]
[1772639047122,7.28024103,91.98,91.918,20.56967506]
[1772639047717,9.781,91.997,91.931,30.35767506]
[1772639048013,20.9492726,91.999,91.932,20.56967506]